bitfinex/quotes_SOLUSD_20260302
["timestamp","ask_amount","ask_price","bid_price","bid_amount"]
[1772418298567,2.71402876,84.182,84.16,3.71671666]
[1772418299185,2.71402876,84.18,84.152,0.51119362]
[1772418300276,2.71402876,84.169,84.14,3.71671666]
[1772418300586,2.71402876,84.159,84.131,0.28432314]
[1772418300888,2.71402876,84.149,84.121,11.88763804]
[1772418301289,2.71402876,84.149,84.122,0.5123098]
[1772418301482,2.71402876,84.165,84.14,3.71671666]
[1772418302373,2.71402876,84.165,84.141,11.88481239]
[1772418302679,59.38450313,84.198,84.141,11.88481239]
[1772418302680,11.8787418,84.184,84.161,0.51258088]
[1772418302883,2.71402876,84.229,84.173,0.51284884]
[1772418303085,2.71402876,84.228,84.2,3.71671666]
[1772418304171,3.71671666,84.27,84.2,3.71671666]
[1772418304172,2.71402876,84.226,84.2,15.59310914]
[1772418304374,2.71402876,84.226,84.21,3.71671666]
[1772418305496,11.8720796,84.232,84.21,3.71671666]
[1772418306395,11.3720796,84.232,84.21,3.71671666]
[1772418306581,11.3720796,84.232,84.21,8.84144958]
[1772418308397,2.71402876,84.232,84.21,8.84144958]
[1772418311796,11.87211359,84.231,84.21,8.84144958]
[1772418312098,14.58614235,84.231,84.21,8.84144958]
[1772418312294,2.71402876,84.23,84.21,8.84144958]
[1772418313984,11.87239549,84.229,84.21,8.84144958]
[1772418314401,2.76393172,84.228,84.21,8.84144958]
[1772418315081,2.76393172,84.228,84.211,11.8749332]
[1772418315397,2.76393172,84.247,84.221,0.51606476]
[1772418315702,2.76393172,84.247,84.23,8.84144958]
[1772418315896,2.76393172,84.246,84.222,11.87338225]
[1772418316103,2.76393172,84.246,84.22,8.84144958]
[1772418318295,2.76393172,84.246,84.221,11.87352323]
[1772418318603,2.76393172,84.246,84.23,8.84144958]
[1772418318785,11.86921108,84.252,84.23,8.84144958]
[1772418318991,14.53029289,84.252,84.23,8.84144958]
[1772418319187,2.66108181,84.252,84.23,8.84144958]
[1772418319383,2.66108181,84.268,84.24,8.84144958]
[1772418319902,2.66108181,84.268,84.236,0.51717862]
[1772418320092,2.66108181,84.268,84.24,9.35884336]
[1772418320400,2.66108181,84.268,84.24,8.84144958]
[1772418320795,2.66108181,84.279,84.25,8.84144958]
[1772418321002,2.66108181,84.279,84.242,0.51739378]
[1772418321003,2.66108181,84.278,84.242,0.51739378]
[1772418321213,2.66108181,84.278,84.241,11.87070428]
[1772418321386,2.66108181,84.269,84.24,8.84144958]
[1772418322296,2.66108181,84.269,84.25,8.84144958]
[1772418322682,2.66108181,84.269,84.24,21.23007364]
[1772418322893,5.36086188,84.323,84.24,21.23007364]
[1772418322894,2.66108181,84.299,84.261,0.5178167]
[1772418323093,2.66108181,84.299,84.27,8.84144958]
[1772418323294,2.66108181,84.288,84.26,8.84144958]
[1772418323494,2.66108181,84.288,84.25,8.84144958]
[1772418323884,2.66108181,84.288,84.26,8.84144958]
[1772418325289,2.66108181,84.286,84.26,8.84144958]
[1772418325794,2.66108181,84.279,84.233,0.51843304]
[1772418325994,2.66108181,84.279,84.241,0.28432314]
[1772418327008,2.66108181,84.279,84.25,3.71053813]
[1772418327702,2.66108181,84.277,84.251,11.86929531]
[1772418330391,2.66108181,84.275,84.251,11.86929531]
[1772418330796,2.66108181,84.275,84.25,3.71053813]
[1772418331810,2.66108181,84.269,84.23,3.71053813]
[1772418332110,2.66108181,84.269,84.24,3.71053813]
[1772418332489,2.66108181,84.269,84.231,62.08432314]
[1772418332490,2.66108181,84.267,84.232,11.87197264]
[1772418332807,2.66108181,84.267,84.231,61.8]
[1772418333004,2.66108181,84.259,84.231,61.8]
[1772418333708,2.66108181,84.259,84.232,11.87197264]
[1772418333910,2.66108181,84.267,84.24,3.71053813]
[1772418334210,2.66108181,84.249,84.202,0.52015894]
[1772418334396,2.66108181,84.229,84.19,3.71053813]
[1772418334596,2.66108181,84.207,84.17,3.71053813]
[1772418334803,2.66108181,84.189,84.16,3.71053813]
[1772418335105,2.66108181,84.189,84.16,15.59260867]
[1772418336307,2.66108181,84.187,84.16,15.59260867]
[1772418336499,2.66108181,84.187,84.16,20.73454345]
[1772418337011,2.66108181,84.187,84.121,0.5206955]
[1772418337306,2.66108181,84.169,84.13,8.85247291]
[1772418338310,2.54239379,84.167,84.131,11.88622505]
[1772418338615,2.54239379,84.167,84.14,9.49203119]
[1772418339014,2.54239379,84.167,84.14,8.85247291]
[1772418339599,2.54239379,84.167,84.131,11.88622505]
[1772418339794,8.85247291,84.16,84.126,11.88687996]
[1772418340099,8.85247291,84.16,84.13,8.85247291]
[1772418340415,11.51355472,84.16,84.131,11.88622505]
[1772418340712,2.66108181,84.16,84.131,11.88622505]
[1772418341226,5.36086188,84.213,84.131,11.88622505]
[1772418341227,53.42,84.279,84.14,8.85247291]
[1772418341406,2.66108181,84.198,84.17,8.85247291]
[1772418342908,11.87656177,84.2,84.16,8.85247291]
[1772418342909,2.66108181,84.196,84.16,8.85247291]
[1772418344616,2.66108181,84.179,84.14,0.64055369]
[1772418344918,8.85247291,84.18,84.14,0.64055369]
[1772418344919,2.66108181,84.177,84.15,8.85247291]
[1772418345099,2.66108181,84.177,84.15,70.65247291]
[1772418346503,2.66108181,84.175,84.14,8.85247291]
[1772418346703,2.66108181,84.169,84.14,8.85247291]
[1772418346895,11.87987074,84.176,84.141,0.64114161]
[1772418347102,2.77698789,84.179,84.15,8.85247291]
[1772418348126,2.77698789,84.177,84.15,8.85247291]
[1772418348506,8.85247291,84.2,84.14,8.85247291]
[1772418348507,2.77698789,84.169,84.14,8.85247291]
[1772418348705,2.77698789,84.169,84.14,20.73742546]
[1772418350010,2.77698789,84.169,84.14,8.85247291]
[1772418350325,2.77698789,84.167,84.14,61.8]
[1772418350910,2.77698789,84.159,84.124,11.88710884]
[1772418351113,2.77698789,84.159,84.133,3.69383402]
[1772418352022,2.77698789,84.159,84.13,8.85247291]
[1772418352824,2.77698789,84.157,84.13,8.85247291]
[1772418353001,2.77698789,84.157,84.12,0.2]
[1772418353205,2.77698789,84.157,84.121,11.88763804]
[1772418353620,2.77698789,84.149,84.12,0.2]
[1772418353821,2.77698789,84.149,84.12,20.94017572]
[1772418354025,2.77698789,84.149,84.13,8.85247291]
[1772418355612,14.66073434,84.149,84.122,11.88736025]
[1772418356625,2.77698789,84.148,84.12,0.2]
[1772418357415,2.77698789,84.146,84.12,0.2]
[1772418358514,2.77698789,84.146,84.12,3.92181725]
[1772418359216,11.88396496,84.147,84.12,3.92181725]
[1772418359520,2.77698789,84.167,84.14,3.72181725]
[1772418361117,2.77698789,84.159,84.12,3.92181725]
[1772418361323,2.77698789,84.149,84.12,3.92181725]
[1772418361524,2.77698789,84.149,84.121,11.88763804]
[1772418361853,2.77698789,84.147,84.121,11.88763804]
[1772418362019,2.77698789,84.156,84.13,3.72181725]
[1772418362221,3.72181725,84.16,84.121,11.88763804]
[1772418362427,3.72181725,84.15,84.121,11.88763804]
[1772418363036,3.72181725,84.14,84.12,0.2]
[1772418363725,11.8850949,84.139,84.12,0.2]
[1772418364127,2.77698789,84.138,84.12,0.2]
[1772418367028,2.77698789,84.137,84.12,0.2]
[1772418368127,2.77698789,84.137,84.101,11.89046503]
[1772418368323,2.77698789,84.135,84.101,11.89046503]
[1772418369632,2.77698789,84.135,84.111,11.88905137]
[1772418369839,2.77698789,84.207,84.131,2.84791357]
[1772418370039,2.77698789,84.189,84.16,3.72181725]
[1772418372021,2.77698789,84.187,84.16,3.72181725]
[1772418374440,2.59700125,84.185,84.153,11.88299193]
[1772418377244,2.77981751,84.183,84.153,14.68186524]
[1772418377550,2.77981751,84.183,84.15,3.72181725]
[1772418378056,2.77981751,84.169,84.14,3.72181725]
[1772418378550,2.77981751,84.169,84.14,8.85673221]
[1772418378732,2.77981751,84.169,84.139,11.8850949]
[1772418379133,2.77981751,84.169,84.14,8.85673221]
[1772418379746,2.77981751,84.167,84.14,8.85673221]
[1772418380151,2.77981751,84.167,84.141,11.88481239]
[1772418380657,2.77981751,84.167,84.142,2.79887331]
[1772418380846,2.77981751,84.171,84.142,2.79887331]
[1772418381275,11.87982727,84.177,84.151,2.79887331]
[1772418381465,11.87982727,84.177,84.16,8.85673221]
[1772418382538,11.87890996,84.183,84.16,8.85673221]
[1772418382753,14.65872747,84.183,84.16,8.85673221]
[1772418382950,14.65872747,84.183,84.16,20.73874812]
[1772418383154,2.77981751,84.182,84.16,8.85673221]
[1772418383455,2.77981751,84.179,84.141,11.88479408]
[1772418383654,2.77981751,84.169,84.13,11.65560552]
[1772418385145,11.8809999,84.168,84.132,11.88608377]
[1772418385346,2.77981751,84.167,84.132,11.88608377]
[1772418385533,2.77981751,84.159,84.132,11.88608377]
[1772418386057,2.77981751,84.149,84.123,2.79887331]
[1772418386436,2.77981751,84.149,84.123,14.68622683]
[1772418386643,2.77981751,84.149,84.123,11.88735352]
[1772418386844,2.77981751,84.149,84.116,2.79887331]
[1772418386845,2.77981751,84.149,84.118,11.88799539]
[1772418387061,2.77981751,84.178,84.141,2.79887331]
[1772418387274,11.87972961,84.177,84.16,8.85673221]
[1772418387640,11.87972961,84.177,84.151,14.68227338]
[1772418387641,11.87972961,84.177,84.152,2.79887331]
[1772418388048,2.77981751,84.178,84.152,2.79887331]
[1772418388249,11.87904405,84.182,84.16,8.85673221]
[1772418388564,11.87904405,84.182,84.16,8.85321521]
[1772418389565,2.77981751,84.179,84.143,2.79887331]
[1772418389760,2.77981751,84.169,84.135,11.88565995]
[1772418389971,2.77981751,84.169,84.14,8.85321521]
[1772418390841,2.77981751,84.188,84.151,2.79887331]
[1772418391263,2.77981751,84.188,84.16,8.85321521]
[1772418392639,2.77981751,84.186,84.161,11.88198809]
[1772418392841,2.77981751,84.186,84.16,11.65208852]
[1772418393140,2.77981751,84.169,84.125,11.88696462]
[1772418393358,2.77981751,84.149,84.121,11.88763804]
[1772418394446,8.85321521,84.16,84.131,2.79887331]
[1772418394657,2.77981751,84.162,84.131,2.79887331]
[1772418396946,2.77981751,84.159,84.131,14.68496259]
[1772418398760,2.77981751,84.159,84.125,11.88696717]
[1772418398968,2.77981751,84.149,84.119,11.88788268]
[1772418399543,2.77981751,84.149,84.12,8.85321521]
[1772418399759,2.77981751,84.149,84.121,2.79887331]
[1772418400669,2.77981751,84.157,84.131,2.79887331]
[1772418401265,2.77981751,84.157,84.13,8.85321521]
[1772418401465,2.77981751,84.157,84.122,11.88749673]
[1772418402752,2.77981751,84.147,84.12,8.85321521]
[1772418402955,2.77981751,84.157,84.13,8.85321521]
[1772418403156,2.77981751,84.157,84.131,2.79887331]
[1772418403357,2.77981751,84.149,84.122,61.8]
[1772418404863,2.77981751,84.149,84.124,2.79887331]
[1772418405062,2.77981751,84.149,84.13,8.85321521]
[1772418406881,2.77981751,84.147,84.122,61.8]
[1772418407073,8.85321521,84.15,84.122,61.8]
[1772418407074,2.62485352,84.145,84.122,61.8]
[1772418407271,2.62485352,84.153,84.124,2.7046579]
[1772418408381,11.88227046,84.159,84.12,8.85321521]
[1772418408382,2.62485352,84.149,84.12,8.85321521]
[1772418408684,2.62485352,84.149,84.112,61.8]
[1772418409187,2.62485352,84.147,84.113,11.88876868]
[1772418409986,2.62485352,84.147,84.112,61.8]
[1772418410188,2.62485352,84.139,84.111,73.68895054]
[1772418411156,41.08126922,84.148,84.111,73.68895054]
[1772418413065,11.88410619,84.146,84.111,73.68895054]
[1772418413270,2.62485352,84.145,84.111,73.68895054]
[1772418413473,2.62485352,84.159,84.121,2.7046579]
[1772418413661,2.62485352,84.159,84.131,2.7046579]
[1772418414881,8.85321521,84.16,84.131,2.7046579]
[1772418414882,11.88266956,84.157,84.131,2.7046579]
[1772418415089,2.62485352,84.149,84.115,2.7046579]
[1772418415264,2.62485352,84.147,84.115,2.7046579]
[1772418416084,2.62485352,84.147,84.116,11.88834466]
[1772418416263,2.62485352,84.147,84.117,2.7046579]
[1772418418476,2.62485352,84.145,84.119,2.7046579]
[1772418420183,2.62485352,84.145,84.115,2.7046579]
[1772418420989,2.62485352,84.143,84.115,2.7046579]
[1772418421287,2.62485352,84.139,84.103,2.7046579]
[1772418421485,3.72205049,84.13,84.1,0.2]
[1772418421693,2.62485352,84.119,84.1,0.2]
[1772418421894,2.62485352,84.139,84.1,3.92205049]
[1772418422074,2.62485352,84.139,84.11,3.72205049]
[1772418422892,11.88438866,84.144,84.111,11.88905137]
[1772418423598,11.88438866,84.144,84.112,2.7046579]
[1772418424582,11.88438866,84.144,84.111,11.88905137]
[1772418424583,11.88438866,84.144,84.114,2.7046579]
[1772418425597,3.72205049,84.17,84.131,2.7046579]
[1772418425789,11.88002314,84.175,84.141,2.7046579]
[1772418425992,2.62485352,84.189,84.161,2.7046579]
[1772418426205,2.62485352,84.198,84.17,6.42670839]
[1772418426374,2.62485352,84.198,84.171,2.7046579]
[1772418426693,11.87662561,84.199,84.151,2.7046579]
[1772418426694,2.62485352,84.189,84.151,2.7046579]
[1772418427092,2.62485352,84.179,84.151,2.7046579]
[1772418427289,2.62485352,84.169,84.132,2.7046579]
[1772418427689,2.62485352,84.159,84.132,2.7046579]
[1772418428085,2.62485352,84.149,84.12,3.72205049]
[1772418428286,2.62485352,84.149,84.117,2.7046579]
[1772418428287,2.62485352,84.149,84.118,11.88797136]
[1772418429178,2.62485352,84.149,84.12,3.72205049]
[1772418429378,2.62485352,84.139,84.11,6.42670839]
[1772418429707,2.62485352,84.137,84.11,6.42670839]
[1772418430577,2.62485352,84.137,84.101,2.7046579]
[1772418431198,2.62485352,84.137,84.102,2.7046579]
[1772418431393,2.62485352,84.137,84.11,3.72205049]
[1772418432401,2.62485352,84.135,84.11,3.72205049]
[1772418432781,2.62485352,84.135,84.111,11.88905137]
[1772418432989,2.76394315,84.144,84.112,2.78825981]
[1772418433997,11.88413546,84.146,84.121,2.78825981]
[1772418434886,2.76394315,84.151,84.121,2.78825981]
[1772418435102,2.76394315,84.158,84.121,2.78825981]
[1772418435804,2.76394315,84.158,84.13,3.72205049]
[1772418435989,2.76394315,84.156,84.125,2.78825981]
[1772418437205,2.62754464,84.154,84.125,2.78825981]
[1772418437709,2.62754464,84.149,84.121,64.51112276]
[1772418437887,2.62754464,84.149,84.122,2.71112276]
[1772418439417,2.62754464,84.158,84.131,2.71112276]
[1772418440909,11.88227046,84.159,84.118,2.71112276]
[1772418440910,2.62754464,84.149,84.118,2.71112276]
[1772418441113,2.62754464,84.156,84.121,2.71112276]
[1772418441417,11.88212927,84.16,84.131,2.71112276]
[1772418444218,11.88212927,84.16,84.14,3.72205049]
[1772418445097,33.42414516,84.17,84.14,3.72205049]
[1772418445098,2.62754464,84.168,84.142,2.71112276]
[1772418445296,2.62754464,84.166,84.142,2.71112276]
[1772418447418,14.50896803,84.165,84.142,2.71112276]
[1772418448118,14.50835781,84.17,84.142,2.71112276]
[1772418448304,2.62754464,84.169,84.142,2.71112276]
[1772418449102,2.62754464,84.167,84.14,3.72205049]
[1772418450595,2.62754464,84.167,84.14,3.71993879]
[1772418451308,2.62754464,84.179,84.142,2.71112276]
[1772418451909,2.62754464,84.179,84.15,3.71993879]
[1772418452521,2.62754464,84.178,84.142,2.71112276]
[1772418454205,2.62754464,84.176,84.142,2.71112276]
[1772418454923,2.62754464,84.176,84.144,2.71112276]
[1772418455135,2.62754464,84.169,84.141,2.71112276]
[1772418455305,2.62754464,84.169,84.142,2.71112276]
[1772418455506,2.62754464,84.169,84.14,3.71993879]
[1772418456231,2.62754464,84.169,84.141,2.71112276]
[1772418460427,2.62754464,84.167,84.141,2.71112276]
[1772418461030,2.62754464,84.167,84.143,2.71112276]
[1772418461407,3.71993879,84.18,84.151,2.71112276]
[1772418461408,11.87940826,84.18,84.151,2.71112276]
[1772418461720,11.87940826,84.18,84.161,2.71112276]
[1772418462314,2.62754464,84.179,84.155,2.71112276]
[1772418463523,2.62754464,84.179,84.156,14.5938168]
[1772418463728,2.62754464,84.19,84.17,6.43106155]
[1772418464633,2.62754464,84.19,84.17,3.71993879]
[1772418464817,2.62754464,84.19,84.171,14.59160863]
[1772418465211,2.62754464,84.206,84.172,2.71112276]
[1772418465410,2.62754464,84.228,84.2,3.71993879]
[1772418465634,2.62754464,84.228,84.191,2.71112276]
[1772418465809,29.68130508,84.229,84.191,2.71112276]
[1772418465810,3.71993879,84.22,84.191,2.71112276]
[1772418466013,2.62754464,84.219,84.191,2.71112276]
[1772418467434,2.89872789,84.217,84.191,2.71112276]
[1772418469132,2.89872789,84.217,84.19,3.71993879]
[1772418469334,2.89872789,84.209,84.17,3.71993879]
[1772418469513,2.89872789,84.207,84.17,3.71993879]
[1772418470344,2.89872789,84.207,84.18,3.71993879]
[1772418473438,2.89872789,84.205,84.18,3.71993879]
[1772418473840,2.89872789,84.199,84.17,3.71993879]
[1772418476339,2.89872789,84.197,84.17,3.71993879]
[1772418477240,11.87704879,84.196,84.165,11.88138474]
[1772418477542,2.89872789,84.179,84.151,2.86265276]
[1772418477835,11.87704879,84.196,84.171,2.86265276]
[1772418479136,3.71993879,84.2,84.171,2.86265276]
[1772418479718,2.89872789,84.199,84.171,2.86265276]
[1772418480128,2.89872789,84.199,84.173,2.86265276]
[1772418480730,2.89872789,84.199,84.172,11.88043529]
[1772418480731,2.89872789,84.189,84.159,2.86265276]
[1772418480928,2.89872789,84.188,84.161,2.86265276]
[1772418481739,2.89872789,84.202,84.171,2.86265276]
[1772418481938,2.89872789,84.228,84.191,2.86265276]
[1772418482131,2.89872789,84.236,84.211,2.86265276]
[1772418482331,11.87098612,84.239,84.211,2.86265276]
[1772418482928,0.1,84.24,84.221,2.86265276]
[1772418483138,0.1,84.24,84.23,3.71993879]
[1772418483439,0.1,84.24,84.227,2.86265276]
[1772418484536,2.89872789,84.239,84.21,3.71993879]
[1772418485237,0.1,84.24,84.221,2.86265276]
[1772418485426,11.87098612,84.239,84.221,2.86265276]
[1772418488245,0.1,84.24,84.221,2.86265276]
[1772418490646,2.99872789,84.24,84.221,2.86265276]
[1772418491144,3.71993879,84.23,84.211,61.8]
[1772418491359,2.89872789,84.229,84.202,2.86265276]
[1772418491945,2.89872789,84.219,84.19,3.71993879]
[1772418492146,2.89872789,84.219,84.191,2.86265276]
[1772418492534,2.89872789,84.209,84.181,2.86265276]
[1772418493747,2.89872789,84.209,84.181,11.87916513]
[1772418493952,2.8977672,84.217,84.191,2.74037871]
[1772418494133,11.87394618,84.218,84.191,2.74037871]
[1772418494835,11.87338225,84.222,84.201,2.74037871]
[1772418497750,2.70033071,84.222,84.201,2.74037871]
[1772418497948,3.71993879,84.22,84.201,2.74037871]
[1772418498351,2.70033071,84.209,84.174,2.62316589]
[1772418498761,2.70033071,84.199,84.175,2.62316589]
[1772418499658,11.87817741,84.188,84.166,2.62316589]
[1772418502433,11.87738714,84.194,84.168,2.62316589]
[1772418502945,3.71993879,84.19,84.168,2.62316589]
[1772418503638,11.87738714,84.194,84.168,2.62316589]
[1772418503883,11.87738714,84.194,84.171,2.62316589]
[1772418504541,11.87662561,84.199,84.173,2.62316589]
[1772418505847,11.87690772,84.197,84.173,2.62316589]
[1772418506044,2.70033071,84.196,84.173,2.62316589]
[1772418508045,2.70033071,84.189,84.165,2.62316589]
[1772418508554,11.87718985,84.195,84.165,2.62316589]
[1772418508752,2.47215037,99.845,84.165,2.62316589]
[1772418508753,2.70033071,84.199,84.165,2.62316589]
[1772418508948,3.71993879,84.21,84.165,2.62316589]
[1772418508949,2.70033071,84.189,84.165,2.62316589]
[1772418509141,2.70033071,84.179,84.142,2.62316589]
[1772418509345,2.70033071,84.169,84.142,2.62316589]
[1772418509747,3.71993879,84.16,84.142,2.62316589]
[1772418509950,14.58125184,84.169,84.144,2.62316589]
[1772418510245,2.70033071,84.168,84.144,2.62316589]
[1772418512159,11.88114106,84.167,84.144,2.62316589]
[1772418512458,2.70033071,84.166,84.12,0.2]
[1772418512661,3.71969591,84.14,84.12,2.82316589]
[1772418512870,2.70033071,84.139,84.12,0.2]
[1772418514467,11.88523615,84.138,84.12,0.2]
[1772418516748,2.70033071,84.139,84.12,0.2]
[1772418516949,2.70033071,84.167,84.131,2.62316589]
[1772418517572,2.70033071,84.159,84.131,2.62316589]
[1772418518662,2.70033071,84.169,84.14,3.71969591]
[1772418518877,2.70033071,84.169,84.143,2.62316589]
[1772418519774,2.70033071,84.169,84.15,3.71969591]
[1772418519984,11.8809999,84.168,84.15,3.71969591]
[1772418520154,2.70033071,84.175,84.151,2.62316589]
[1772418520655,2.70033071,84.175,84.15,3.71969591]
[1772418521266,14.57949251,84.182,84.151,2.62316589]
[1772418521476,2.70033071,84.181,84.16,6.3428618]
[1772418521770,2.70033071,84.169,84.12,2.82316589]
[1772418521972,3.71969591,84.14,84.122,2.62316589]
[1772418522150,2.70033071,84.148,84.122,2.62316589]
[1772418522572,2.70033071,84.139,84.12,0.2]
[1772418523161,2.70033071,84.139,84.12,12.08769098]
[1772418523368,3.71969591,84.15,84.121,2.62316589]
[1772418523967,11.88297644,84.154,84.121,2.62316589]
[1772418524278,2.70033071,84.153,84.121,2.62316589]
[1772418524483,8.86063112,84.15,84.121,2.62316589]
[1772418524980,2.70033071,84.153,84.123,2.62316589]
[1772418525669,11.88325886,84.152,84.123,2.62316589]
[1772418526174,8.86063112,84.15,84.123,2.62316589]
[1772418526481,11.56096183,84.15,84.123,2.62316589]
[1772418527176,2.70033071,84.15,84.125,2.72887092]
[1772418527378,8.86063112,84.16,84.131,2.72887092]
[1772418527570,11.88227046,84.159,84.131,2.72887092]
[1772418527882,2.89552683,84.158,84.125,2.72887092]
[1772418530385,2.89552683,84.156,84.128,2.72887092]
[1772418531188,2.89552683,84.156,84.131,2.72887092]
[1772418531679,8.86063112,84.16,84.131,2.72887092]
[1772418531877,11.88109719,84.168,84.141,2.72887092]
[1772418532079,2.89552683,84.169,84.141,2.72887092]
[1772418532465,2.89552683,84.169,84.143,2.72887092]
[1772418533075,11.8809999,84.168,84.143,2.72887092]
[1772418533675,14.77652673,84.168,84.143,2.72887092]
[1772418533876,2.89552683,84.167,84.143,2.72887092]
[1772418535087,8.86063112,84.18,84.151,2.72887092]
[1772418535287,11.87380519,84.219,84.161,2.72887092]
[1772418536290,41.55831818,84.219,84.161,2.72887092]
[1772418536497,100.92734417,84.219,84.161,2.72887092]
[1772418536667,8.86063112,84.19,84.161,2.72887092]
[1772418537288,11.87817741,84.188,84.161,2.72887092]
[1772418537491,2.39454093,84.187,84.161,2.72887092]
[1772418540596,0.28432314,84.218,84.15,11.58950204]
[1772418540597,2.39430875,84.179,84.15,11.58950204]
[1772418540773,2.39430875,84.179,84.152,2.72887092]
[1772418542275,41.5746086,84.186,84.16,11.58950204]
[1772418542276,2.39446409,84.185,84.16,11.58950204]
[1772418543918,11.8787418,84.184,84.161,2.72887092]
[1772418544801,2.39461587,84.184,84.161,2.72887092]
[1772418545296,2.39461587,84.184,84.155,2.72887092]
[1772418545504,6.11271258,84.18,84.155,2.72887092]
[1772418545704,2.39469046,84.179,84.155,2.72887092]
[1772418548274,11.87958849,84.178,84.155,2.72887092]
[1772418548704,14.27449762,84.178,84.155,2.72887092]
[1772418549010,14.27456884,84.178,84.155,2.72887092]
[1772418549800,11.87577934,84.205,84.171,2.72887092]
[1772418550380,2.39505075,84.204,84.171,2.72887092]
[1772418550780,2.39505075,84.204,84.151,61.8]
[1772418550781,11.87606142,84.203,84.181,2.72887092]
[1772418552397,11.87606142,84.203,84.182,2.72887092]
[1772418556186,9.7214348,84.203,84.182,2.72887092]
[1772418556597,12.11695623,84.203,84.182,2.72887092]
[1772418557999,2.39571179,84.202,84.182,2.72887092]
[1772418558203,2.39571179,84.199,84.173,2.79259467]
[1772418560809,11.87676666,84.198,84.173,2.79259467]
[1772418562807,2.39595555,84.198,84.173,2.79259467]
[1772418564306,2.39595555,84.198,84.166,11.88128222]
[1772418564513,2.39607327,84.189,84.161,2.79259467]
[1772418564909,2.39607327,84.194,84.163,2.79259467]
[1772418565108,2.39607327,84.194,84.171,2.79259467]
[1772418567115,11.87747199,84.193,84.171,2.79259467]
[1772418568604,2.39630071,84.193,84.171,2.79259467]
[1772418568808,2.39630071,84.193,84.172,11.88043529]
[1772418569013,2.39630071,84.198,84.173,2.79259467]
[1772418569212,11.87662561,84.199,84.18,3.71802212]
[1772418569414,11.87394618,84.218,84.191,2.79259467]
[1772418569721,11.87394618,84.218,84.201,2.79259467]
[1772418570808,11.8731003,84.224,84.201,2.79259467]
[1772418574003,41.55364482,84.229,84.201,2.79259467]
[1772418574205,41.55364482,84.229,84.21,3.71445405]
[1772418574206,14.26901825,84.229,84.21,3.71445405]
[1772418574410,14.26901825,84.229,84.208,2.79259467]
[1772418574903,2.39662276,84.228,84.208,2.79259467]
[1772418575108,11.8726774,84.227,84.208,2.79259467]
[1772418575304,2.39667429,84.226,84.2,3.71445405]
[1772418575504,2.39667429,84.226,84.196,2.79259467]
[1772418576225,3.81445405,84.24,84.211,2.79259467]
[1772418576226,11.87213318,84.231,84.211,2.79259467]
[1772418577026,14.26890878,84.231,84.211,2.79259467]
[1772418577215,11.87239549,84.229,84.211,2.79259467]
[1772418578310,14.26922087,84.229,84.211,2.79259467]
[1772418579026,11.87239549,84.229,84.211,2.79259467]
[1772418579734,2.39687459,84.228,84.201,2.79259467]
[1772418579936,2.39687459,84.219,84.19,6.50704872]
[1772418580112,2.39687459,84.219,84.19,2.79259467]
[1772418580825,11.87394618,84.218,84.19,2.79259467]
[1772418581012,2.39692324,84.217,84.19,2.79259467]
[1772418582117,41.55881164,84.218,84.183,2.79259467]
[1772418582118,2.39701886,84.209,84.183,2.79259467]
[1772418584234,2.39711229,84.207,84.171,2.79259467]
[1772418584415,2.39711229,84.199,84.171,2.79259467]
[1772418585233,2.39711229,84.199,84.172,2.79259467]
[1772418585737,2.39715821,84.197,84.172,2.79259467]
[1772418586231,11.87676666,84.198,84.172,2.79259467]
[1772418586232,3.71445405,84.19,84.172,2.79259467]
[1772418586536,2.39720359,84.179,84.141,2.79259467]
[1772418587123,2.39720359,84.179,84.151,2.8851046]
[1772418588012,14.27677088,84.179,84.153,2.8851046]
[1772418588216,11.87956729,84.179,84.153,2.8851046]
[1772418589439,11.8788962,84.183,84.153,2.8851046]
[1772418589835,3.71445405,84.18,84.154,2.8851046]
[1772418590340,11.87944736,84.179,84.154,2.8851046]
[1772418591851,2.39746517,84.178,84.148,2.8851046]
[1772418592455,3.71445405,84.17,84.148,2.8851046]
[1772418592864,2.39750704,84.169,84.148,2.8851046]
[1772418593058,2.39750704,84.169,84.133,2.8851046]
[1772418593570,3.71445405,84.17,84.13,3.71445405]
[1772418593571,2.39754842,84.167,84.135,2.8851046]
[1772418594171,2.39754842,84.167,84.141,2.8851046]
[1772418596076,2.39766973,84.173,84.151,2.8851046]
[1772418596573,3.71445405,84.17,84.151,2.8851046]
[1772418597875,2.39766973,84.173,84.151,2.8851046]
[1772418598856,11.88015301,84.174,84.151,2.8851046]
[1772418599061,3.71445405,84.19,84.161,2.8851046]
[1772418599277,2.39778691,84.189,84.161,2.8851046]
[1772418600264,11.87817741,84.188,84.161,2.8851046]
[1772418600470,2.39782507,84.187,84.161,2.8851046]
[1772418600778,2.39782507,84.179,84.153,2.8851046]
[1772418600978,3.71445405,84.2,84.171,2.8851046]
[1772418601171,11.87521523,84.209,84.181,2.8851046]
[1772418602187,14.27339737,84.207,84.181,2.8851046]
[1772418602686,2.39790009,84.199,84.172,2.8851046]
[1772418602978,41.56424049,84.207,84.172,2.8851046]
[1772418602979,2.39790009,84.194,84.172,2.8851046]
[1772418603162,6.11239101,84.2,84.174,2.8851046]
[1772418603362,2.39793696,84.206,84.174,2.8851046]
[1772418603570,2.39793696,84.229,84.191,2.8851046]